Cogmind - Beta 9.6 @@@ ROGUE MODE // 2020.07.07 @ 19:30:09 Player: Mr.Manatee Result: Destroyed by G-73 Enforcer with Phase Gun Performance ------------- Evolutions (8) 4000 Regions Visited (14) 2800 Robots Destroyed (293) 1465 Value Destroyed (12949) 12949 Prototype IDs (46) 920 Alien Tech Used (0) 0 Bonus (3959) 3959 TOTAL SCORE: 26093 Bonus ------- High Alert Combat Kills 2890 Follower Combat Kills 1434 Aligned with FarCom 300 Friendly Fire -665 Cogmind --------- Core Integrity 0/1450 Matter 137/300 Energy 100/100 System Corruption 17% Temperature Cool (9) Movement Core (550) Ox10 Location -2/Research Parts ------- > --- POWER (3) -------- (None) > --- PROPULSION (6) --- (None) > --- UTILITY (10) ----- High-capacity Storage Unit > --- WEAPON (4) ------- (None) > --- INVENTORY (12) --- Improved Matter Compressor (300) Antimissile System High-powered Tractor Beam Advanced Recalibrator PSU Rigger Advanced Remote Datajack Peak State ------------ > --- POWER ------------ Particle Reactor Light Quantum Reactor Improved Quantum Reactor > --- PROPULSION ------- Centrium Heavy Treads Biometal Heavy Treads Biometal Heavy Treads > --- UTILITY ---------- Advanced Heat Sink Coolant Injector High-capacity Storage Unit Advanced Signal Interpreter Advanced Target Analyzer Advanced Core Analyzer Advanced Armor Integrity Analyzer Improved Weapon Cycler Advanced Phase Shifter Advanced Force Field > --- WEAPON ----------- KE Penetrator Railgun Hypervelocity Railgun Hypervelocity Railgun > --- INVENTORY -------- Antimatter Reactor Particle Reactor Matter Compressor Advanced Sensor Array Recoil Nullifier Antimissile System Advanced Recalibrator PSU Rigger Gamma Rifle Gamma Rifle Hardcell Cannon Advanced Remote Datajack [Rating: 176] Favorites ----------- Power Heavy Ion Engine Engine Heavy Ion Engine Power Core Enhanced Fission Core Reactor Antimatter Reactor Propulsion Potential Leg Treads Light Treads Leg Potential Leg Wheel Wheel Utility Targeting Computer Device Advanced Heat Sink Storage High-capacity Storage Unit Processor Targeting Computer Hackware Improved System Shield Protection Improved Medium Armor Plating Weapon Hypervelocity Railgun Energy Gun Wave Gun Energy Cannon Cooled Particle Cannon Ballistic Gun Hypervelocity Railgun Ballistic Cannon Hardcell Cannon Build | -11 -10 -10 -9 -9 -9 -8 -8 -7 -6 -5 -4 -4 -3 -2 ------- Run | Scr Mat Min Mat Min Exi Min Mat Fac Fac Fac Fac Ext Res Res Slots Evolved 16 | . . . 2 . . . 2 2 2 2 2 . 2 2 Power 2 | . . . . . . . . . 1 . . . 1 . Propulsion 4 | . . . 2 . . . . . . 1 . . . 1 Utility 8 | . . . . . . . . 2 1 1 2 . 1 1 Weapon 2 | . . . . . . . 2 . . . . . . . Parts Attached 245 | 6 3 5 6 7 3 . 6 26 19 20 13 34 33 64 Power 35 | 1 . 1 1 1 . . 1 3 4 2 1 2 5 13 Engine 13 | 1 . 1 1 1 . . 1 3 4 1 . . . . Core 1 | . . . . . . . . . . 1 . . . . Reactor 21 | . . . . . . . . . . . 1 2 5 13 Propulsion 47 | 2 . 2 3 2 2 . 1 6 8 2 1 9 3 6 Treads 10 | . . 2 3 . . . . . . . . . 1 4 Leg 35 | . . . . 2 2 . 1 6 8 2 1 9 2 2 Wheel 2 | 2 . . . . . . . . . . . . . . Hover . | . . . . . . . . . . . . . . . Flight . | . . . . . . . . . . . . . . . Utility 102 | 1 3 . . . 1 . 1 10 5 9 8 11 16 37 Device 61 | . . . . . . . . 5 3 6 7 4 12 24 Storage 18 | 1 2 . . . 1 . 1 3 1 . . . 2 7 Processor 7 | . 1 . . . . . . . . 1 . 1 . 4 Hackware 1 | . . . . . . . . . 1 . . . . . Protection 15 | . . . . . . . . 2 . 2 1 6 2 2 Artifact . | . . . . . . . . . . . . . . . Weapon 61 | 2 . 2 2 4 . . 3 7 2 7 3 12 9 8 Energy Gun 15 | 2 . . . . . . 1 1 1 2 2 1 2 3 Energy Cannon 7 | . . . . . . . . 2 . 4 1 . . . Ballistic Gun 33 | . . 2 2 4 . . 2 4 1 1 . 8 5 4 Ballistic Cannon 6 | . . . . . . . . . . . . 3 2 1 Launcher . | . . . . . . . . . . . . . . . Special Weapon . | . . . . . . . . . . . . . . . Impact Weapon . | . . . . . . . . . . . . . . . Slashing Weapon . | . . . . . . . . . . . . . . . Piercing Weapon . | . . . . . . . . . . . . . . . Special Melee Weapon . | . . . . . . . . . . . . . . . Unidentified Prototypes 14 | . . . 1 . . . 1 3 1 2 . . 2 4 Parts Lost 49 | . . 3 . 7 . . . 2 . . 4 4 3 26 Power 10 | . . . . 1 . . . . . . . . 1 8 Propulsion 8 | . . 1 . 4 . . . . . . . . . 3 Utility 12 | . . . . . . . . 2 . . 2 1 1 6 Weapon 19 | . . 2 . 2 . . . . . . 2 3 1 9 Highest Loss Streak 20 | . . 3 . 7 . . . 1 . . 1 2 3 20 Average Slot Usage (%) 85 | . 91 98 94 85 87 100 71 73 79 91 92 96 99 85 Engine 6 | . 14 14 11 10 11 11 8 7 12 8 1 . . . Reactor 3 | . . . . . . . . . . . 3 5 11 12 Treads 5 | . . 23 38 19 . . . . . . . . . 10 Leg 21 | . . . . 11 31 44 36 30 26 29 26 26 22 3 Device 10 | . . . . . . . . 7 12 18 15 18 23 21 Storage 7 | . 14 14 11 11 11 11 9 7 5 5 5 5 4 4 Processor 9 | . 5 14 11 11 11 11 9 7 6 3 5 9 9 14 Protection 2 | . . . . . . . . 4 . 2 9 6 4 1 Energy Gun 1 | . 28 3 . . . . . . . 2 5 2 . . Energy Cannon 1 | . . . . . . . . . . 8 13 1 . . Ballistic Gun 11 | . . 24 22 22 22 22 8 6 6 2 . 12 16 14 Naked Turns . | . . . . . . . . . . . . . . . Heaviest Build 137 | 10 22 27 30 30 30 30 39 64 76 100 118 104 135 137 Greatest Support 230 | 20 20 40 80 80 80 80 85 95 100 112 117 121 125 230 Greatest Overweight (x) 10 | 2 1 2 . 7 1 . . . . . 1 . 3 10 Average Overweight (x) . | . . . . . . . . . . . . . . . Largest Inventory Capacity 18 | 6 10 10 10 10 10 10 10 18 12 12 12 12 12 12 Average Capacity 11 | 5 8 10 10 10 10 10 10 10 11 12 12 12 12 12 Most Carried 12 | 6 7 9 10 10 10 10 10 11 12 12 12 12 12 12 Average Carried 10 | 3 6 6 9 7 7 10 9 9 11 10 11 11 11 11 Final Capacity 12 | 6 10 10 10 10 10 10 10 12 12 12 12 12 12 12 Final Carried 12 | 6 7 7 10 6 10 10 10 11 12 12 12 12 12 6 Class Distribution -------------------- 27% | Gunner 24% | Scavenger-Gunner 19% | Mutant 13% | Skirmisher 12% | Tank Dominant Class ---------------- Mutant | -10/Materials Mutant | -10/Mines Mutant | -9/Materials Mutant | -9/Mines Mutant | -9/Exiles Mutant | -8/Mines Skirmisher | -8/Materials Gunner | -7/Factory Gunner | -6/Factory Tank | -5/Factory Tank | -4/Factory Scavenger-Gunner | -4/Extension Scavenger-Gunner | -3/Research Scavenger-Gunner | -2/Research Resources | -11 -10 -10 -9 -9 -9 -8 -8 -7 -6 -5 -4 -4 -3 -2 ----------- Run | Scr Mat Min Mat Min Exi Min Mat Fac Fac Fac Fac Ext Res Res Matter Collected 11523 | 184 86 71 198 338 . 79 1244 1201 1707 755 163 919 814 3764 Remotely 2456 | . . . . . . . . . 1687 635 . . 134 . Salvage Created 16701 | . 55 130 306 603 . 61 1337 1584 1703 1450 857 1066 1357 6192 Parts 817 | . 5 8 20 18 . 3 74 93 83 54 35 37 71 316 Haulers Intercepted 18 | . 1 . 3 . . . 5 4 1 . 1 1 1 1 Recyclers Shooed 3 | . . . . . . . 1 . . . . . 1 1 Parts Field Recycled . | . . . . . . . . . . . . . . . Retrieved Matter . | . . . . . . . . . . . . . . . Parts Self-Destructed . | . . . . . . . . . . . . . . . Prevented . | . . . . . . . . . . . . . . . Kills | -11 -10 -10 -9 -9 -9 -8 -8 -7 -6 -5 -4 -4 -3 -2 ------- Run | Scr Mat Min Mat Min Exi Min Mat Fac Fac Fac Fac Ext Res Res Combat Hostiles Destroyed 221 | . . 2 4 21 . 4 20 25 29 23 11 11 12 59 Melee 1 | . . . . . . . . . . . . . . 1 Guns 192 | . . 2 4 21 . 4 20 25 29 14 1 5 10 57 Cannons 25 | . . . . . . . . . . 8 9 5 2 1 Classes Destroyed 20 | . 1 2 1 6 . . 4 1 1 . . . 1 3 Worker 11 | . . 1 . . . . 1 1 . . . 1 2 5 Builder 19 | . . . . 1 . . 1 3 . 1 1 1 4 7 Tunneler 1 | . . . . . . . . . . . . . . 1 Hauler 18 | . 1 . 3 . . . 5 4 1 . 1 1 1 1 Recycler 7 | . . . . . . . 1 1 . . . . 2 3 Carrier 1 | . . . . . . . . . . . . . . 1 Mechanic 2 | . . . . . . . . . 1 . . . . 1 Operator 4 | . . . . . . . 1 1 1 1 . . . . Watcher 7 | . . . . . . . 4 . 1 . . . . 2 Swarmer 24 | . . . 2 . . 4 6 5 6 . 1 . . . Grunt 79 | . . . . 6 . . 6 6 13 19 4 5 1 19 Brawler 6 | . . . . 1 . . . . . 1 . . 1 3 Duelist 5 | . . . . 1 . . . 1 . . 1 . 1 1 Protector 2 | . . . . . . . . . . . . . 1 1 Sentry 32 | . . 2 2 . . . 7 4 3 1 2 4 2 5 Demolisher 4 | . . . . 2 . . . . . . . . 2 . Hunter 16 | . . . . . . . 1 2 3 . . 1 . 9 Programmer 41 | . . . . . . . . 7 4 2 3 1 4 20 Behemoth 1 | . . . . . . . . . . . . . . 1 Assembled 11 | . . . . 11 . . . . . . . . . . Butcher 1 | . . . . . . . . . . . . 1 . . Guerrilla 1 | . . . . . . . . . . . . . 1 . Best Kill Streak 11 | . 1 2 2 8 . 4 5 6 5 6 6 3 7 11 Combat Bots Only 8 | . . 2 2 8 . 4 4 4 5 5 5 3 6 6 Max Kills in Single Turn 3 | . 1 1 1 2 . 1 2 2 1 2 1 2 2 3 Gunslinging 1 | . . . . 1 . . . . . . . . . 1 Exploded . | . . . . . . . . . . . . . . . Melee 1 | . . . . . . . . . . . . . . 1 Uniques/NPCs Destroyed . | . . . . . . . . . . . . . . . Combat | -11 -10 -10 -9 -9 -9 -8 -8 -7 -6 -5 -4 -4 -3 -2 -------- Run | Scr Mat Min Mat Min Exi Min Mat Fac Fac Fac Fac Ext Res Res Damage Taken 15362 | . . 433 271 1288 . 110 481 765 617 772 1411 1261 1155 6798 Core 2530 | . . 193 48 187 . 18 72 125 50 109 68 67 131 1462 Absorbed by Shields 3586 | . . . . . . . . 131 233 295 25 70 106 2726 Reduced by Siege Mode 553 | . . . . . . . . . . . . . . 553 Core Remaining (%) 76 | 100 . 22 . . . 36 86 82 94 89 . 88 89 . Volleys Fired 687 | . 11 18 23 51 . 11 68 90 75 57 33 50 35 165 Largest 4 | . 2 2 2 2 . 2 1 2 1 4 4 4 4 4 Hottest 290 | . 90 90 46 46 . 46 60 180 60 171 222 200 185 290 Shots Fired 1569 | . 22 21 46 101 . 22 68 91 75 117 118 159 138 591 Gun 1310 | . 22 21 46 101 . 22 68 81 75 57 22 115 121 559 Cannon 259 | . . . . . . . . 10 . 60 96 44 17 32 Launcher . | . . . . . . . . . . . . . . . Special . | . . . . . . . . . . . . . . . Kinetic 1250 | . . 14 46 101 . 22 68 81 75 37 . 108 138 560 Thermal 252 | . 22 7 . . . . . 10 . 80 98 35 . . Explosive . | . . . . . . . . . . . . . . . Electromagnetic 67 | . . . . . . . . . . . 20 16 . 31 Robot Hit Streak 50 | . 4 14 20 43 . 4 17 16 34 12 13 18 8 50 Robot Miss Streak 8 | . 2 1 3 5 . 1 6 4 5 4 7 3 8 4 Penetration Max 4 | . . . . . . . . . . . . 1 1 4 Secondary Targets 19 | . . . 1 5 . . . . . . . . 2 11 Max Gunslinging Chain 1 | . . . 1 1 . . . . . . . . 1 1 Shots Hit Robots 1144 | . 14 19 37 78 . 14 60 82 73 89 75 88 76 439 Core Hits 638 | . 2 7 12 41 . 4 44 53 63 60 35 49 55 213 Critical Hits 201 | . . . . 1 . 1 . . . . 1 14 15 169 Critical Kills 71 | . . . . . . . . . . . . 2 6 63 Critical Parts Destroyed 104 | . . . . 1 . 1 . . . . 1 8 9 84 Melee Attacks . | . . . . . . . . . . . . . . . Impact . | . . . . . . . . . . . . . . . Slashing . | . . . . . . . . . . . . . . . Piercing . | . . . . . . . . . . . . . . . Sneak Attacks . | . . . . . . . . . . . . . . . Combat Hostiles . | . . . . . . . . . . . . . . . Follow-up Attacks . | . . . . . . . . . . . . . . . Damage Inflicted 31795 | . 119 174 578 1149 . 210 2590 4233 4005 3110 1827 3087 2272 8441 Guns 27044 | . 119 174 564 1149 . 210 2590 3936 4005 2133 431 2104 2102 7527 Cannons 4626 | . . . . . . . . 267 . 977 1396 983 170 833 Explosions . | . . . . . . . . . . . . . . . Melee . | . . . . . . . . . . . . . . . Ramming 125 | . . . 14 . . . . 30 . . . . . 81 Kinetic 26671 | . . 107 564 1149 . 210 2590 3936 4005 1800 . 2124 2272 7914 Thermal 4148 | . 119 67 . . . . . 267 . 1310 1644 741 . . Explosive . | . . . . . . . . . . . . . . . Electromagnetic 851 | . . . . . . . . . . . 183 222 . 446 Impact . | . . . . . . . . . . . . . . . Slashing . | . . . . . . . . . . . . . . . Piercing . | . . . . . . . . . . . . . . . Highest Corruption 17 | . . . 1 1 1 1 . 2 2 1 9 9 4 17 Average Corruption 4 | . . . 1 1 1 1 . 1 1 1 4 9 3 7 Corruption Purged . | . . . . . . . . . . . . . . . Effects 267 | . . . 5 5 2 3 . 4 6 4 26 67 23 122 Message Errors 38 | . . . 4 2 1 1 . 1 2 . 4 8 5 10 Matter Fused 30 | . . . . . . . . . . . 7 9 1 13 Heat Flow Errors 21 | . . . . . . . . . 2 . 3 5 3 8 Energy Discharges 24 | . . . . 1 . . . 1 . 1 1 9 2 9 Parts Rejected 3 | . . . . . . . . . . . . 1 . 2 Data Loss (minor) 30 | . . . 1 1 1 1 . 1 . 2 2 11 2 8 Data Loss (major) 6 | . . . . . . . . . . . 1 3 . 2 Misfires 2 | . . . . . . . . . . . 1 1 . . Alerts 2 | . . . . . . . . . . . . . . 2 Misdirections 2 | . . . . . . . . . . . . . . 2 Targeting Errors 90 | . . . . 1 . 1 . . 2 1 7 16 9 53 Weapon Failures 19 | . . . . . . . . 1 . . . 4 1 13 Overload Shots 10 | . . . . . . . . 2 . . . 8 . . Overflow Damage 77 | . . . . . . . . 24 . . 33 20 . . Projectiles 75 | . . . . . . . . 22 . . 33 20 . . Explosions . | . . . . . . . . . . . . . . . Melee 2 | . . . . . . . . 2 . . . . . . Knockbacks 7 | . . . . . . . . 1 . . . 3 2 1 Impact 1 | . . . . . . . . 1 . . . . . . Kinetic 6 | . . . . . . . . . . . . 3 2 1 Secondary . | . . . . . . . . . . . . . . . Self-Inflicted Damage 6 | . . . . . . . . 6 . . . . . . Shots . | . . . . . . . . . . . . . . . Rammed 5 | . . . 1 . . . . 1 . . . . . 3 Targets Rammed 10 | . . . 1 . . . . 5 . . . . . 4 Kicked 4 | . . . . . . . . 4 . . . . . . Crushed 1 | . . . . . . . . . . . . . . 1 Highest Temperature 487 | . 90 123 2 13 . . 315 223 408 487 86 255 356 330 Average Temperature 90 | . 46 66 2 7 . . 78 75 111 104 33 48 91 105 Received Heat Transfer 2497 | . . 144 66 227 . . 99 196 104 238 167 169 30 1057 Effects 9 | . . . . . . . 1 . 4 2 . . . 2 Shutdowns 2 | . . . . . . . . . 1 1 . . . . Energy Bleed 2 | . . . . . . . 1 . . 1 . . . . Interference 2 | . . . . . . . . . 1 . . . . 1 Matter Decay 2 | . . . . . . . . . 1 . . . . 1 Damage (minor) 1 | . . . . . . . . . 1 . . . . . Siege Activations 19 | . . . . . . . . . . . . . . 19 Total Turns 425 | . . . . . . . . . . . . . . 425 Longest Duration 68 | . . . . . . . . . . . . . . 68 Robots Corrupted 1 | . . . . . . . . . . . . 1 . . Combat Hostiles 1 | . . . . . . . . . . . . 1 . . Parts Fried 1 | . . . . . . . . . . . . 1 . . Impact Corruptions 1 | . . . . . . . . 1 . . . . . . Robots Melted 2 | . . . . . . . . . . 1 1 . . . Combat Hostiles 2 | . . . . . . . . . . 1 1 . . . Parts Melted 23 | . . . . . . . . . . 7 14 2 . . Heat Transferred 5809 | . 322 162 . . . . . 346 . 1702 2257 1020 . . Parts Sabotaged . | . . . . . . . . . . . . . . . Parts Stolen . | . . . . . . . . . . . . . . . Parts Stripped . | . . . . . . . . . . . . . . . Power Chain Reactions . | . . . . . . . . . . . . . . . Missiles Intercepted . | . . . . . . . . . . . . . . . Alert | -11 -10 -10 -9 -9 -9 -8 -8 -7 -6 -5 -4 -4 -3 -2 ------- Run | Scr Mat Min Mat Min Exi Min Mat Fac Fac Fac Fac Ext Res Res Peak Influence 1511 | . 58 47 208 202 . 90 353 448 733 720 478 818 708 1511 Average Influence 335 | . 23 24 38 113 . 15 172 144 448 514 385 424 549 722 Maximum Alert Level 4 | . . . 1 1 . . 1 2 3 3 2 3 3 4 Low Security (%) 40 | 100 100 100 97 93 . 100 54 73 . . . 28 . 4 Level 1 24 | . . . 2 6 . . 45 24 39 12 55 21 . 24 Level 2 26 | . . . . . . . . 2 50 76 44 41 99 26 Level 3 5 | . . . . . . . . . 10 11 . 9 . 21 Level 4 3 | . . . . . . . . . . . . . . 22 Level 5 . | . . . . . . . . . . . . . . . High Security . | . . . . . . . . . . . . . . . Max Security . | . . . . . . . . . . . . . . . Squads Dispatched 53 | . 1 . 1 . . . 4 12 9 3 2 3 3 15 Investigation 11 | . . . . . . . 1 2 4 1 1 1 . 1 Extermination 18 | . . . . . . . . 5 2 1 1 . 2 7 Reinforcement 12 | . 1 . 1 . . . 1 2 3 . . 2 . 2 Assault 7 | . . . . . . . . . . 1 . . 1 5 Garrison 5 | . . . . . . . 2 3 . . . . . . Intercept . | . . . . . . . . . . . . . . . Construction Impeded 2 | . . . . . . . 1 . 1 . . . . . Haulers Reinforced 4 | . . . . . . . . 2 1 . . . . 1 Stealth | -11 -10 -10 -9 -9 -9 -8 -8 -7 -6 -5 -4 -4 -3 -2 --------- Run | Scr Mat Min Mat Min Exi Min Mat Fac Fac Fac Fac Ext Res Res Distress Signals 13 | . . . . 1 . . 2 3 . . . 4 3 . Communications Jammed 232 | . . . . . . . . . . . . 192 40 . Distress Signals 232 | . . . . . . . . . . . . 192 40 . Times Spotted 381 | . 3 2 15 27 . 5 28 43 37 34 20 43 26 98 Peak Tracking Total 9 | . 2 2 4 8 . 4 4 4 4 6 6 6 8 9 Tactical Retreats 26 | . . . 1 1 . 1 2 5 3 2 . 2 . 9 Traps | -11 -10 -10 -9 -9 -9 -8 -8 -7 -6 -5 -4 -4 -3 -2 ------- Run | Scr Mat Min Mat Min Exi Min Mat Fac Fac Fac Fac Ext Res Res Traps Triggered 12 | . . . 1 . . . . 3 2 1 1 . 2 2 Indirectly . | . . . . . . . . . . . . . . . Trap Hack Attempts . | . . . . . . . . . . . . . . . Triggered . | . . . . . . . . . . . . . . . Disarmed . | . . . . . . . . . . . . . . . Reprogrammed . | . . . . . . . . . . . . . . . Reused . | . . . . . . . . . . . . . . . Traps Extracted . | . . . . . . . . . . . . . . . Installed . | . . . . . . . . . . . . . . . Triggered . | . . . . . . . . . . . . . . . Power Sources Rigged 5 | . . . . . . . . . . 2 3 . . . Exploded 4 | . . . . . . . . . . 1 3 . . . Machines | -11 -10 -10 -9 -9 -9 -8 -8 -7 -6 -5 -4 -4 -3 -2 ---------- Run | Scr Mat Min Mat Min Exi Min Mat Fac Fac Fac Fac Ext Res Res Machines Disabled 17 | . . . 1 . . . 4 2 . 3 . 4 . 3 Max in Single Turn 1 | . . . 1 . . . 1 1 . 1 . 1 . 1 Machines Sabotaged . | . . . . . . . . . . . . . . . Garrisons Compromised . | . . . . . . . . . . . . . . . Overloaded Fab Kills 1 | . . . . . . . . . . . . . . 1 Fab Network Shutdowns . | . . . . . . . . . . . . . . . Hacking | -11 -10 -10 -9 -9 -9 -8 -8 -7 -6 -5 -4 -4 -3 -2 --------- Run | Scr Mat Min Mat Min Exi Min Mat Fac Fac Fac Fac Ext Res Res Machines Accessed 61 | . 1 . 7 . 1 . 10 8 10 4 1 11 3 5 Terminals 36 | . . . 5 . . . 7 4 3 3 1 10 . 3 Fabricators 5 | . . . . . . . . 1 2 . . . 1 1 Repair Stations 7 | . . . . . . . 1 . 2 1 . 1 1 1 Recycling Units 2 | . 1 . . . . . . . . . . . 1 . Scanalyzers 10 | . . . 2 . . . 2 3 3 . . . . . Garrison Access . | . . . . . . . . . . . . . . . Total Hacks 177 | . 4 . 22 . 1 . 26 22 52 11 1 23 5 10 Successful 96 | . 2 . 16 . 1 . 16 12 27 5 . 8 3 6 Failed 81 | . 2 . 6 . . . 10 10 25 6 1 15 2 4 Catastrophic 17 | . . . 1 . . . 1 1 3 1 . 6 2 2 Database Lockouts . | . . . . . . . . . . . . . . . Manual 78 | . 2 . 17 . 1 . 17 9 13 7 1 6 . 5 Terminals 95 | . . . 18 . . . 19 11 9 9 1 20 . 8 Fabricators 10 | . . . . . . . . 2 5 . . . 2 1 Repair Stations 24 | . . . . . . . 2 . 14 2 . 3 2 1 Recycling Units 5 | . 4 . . . . . . . . . . . 1 . Scanalyzers 42 | . . . 4 . . . 5 9 24 . . . . . Garrison Access . | . . . . . . . . . . . . . . . Terminal Hacks 20 | . . . 3 . 1 . 3 4 . 1 . 6 . 2 Record 1 | . . . . . . . . . . . . . . 1 Robot Analysis 1 | . . . . . . . . . . 1 . . . . Prototype ID Bank 5 | . . . 1 . . . 1 1 . . . 1 . 1 Open Door 3 | . . . . . . . . . . . . 3 . . Branch Access Points 1 | . . . 1 . . . . . . . . . . . Alert Level 2 | . . . . . . . 1 . . . . 1 . . Unreport Threat 5 | . . . 1 . . . 1 2 . . . 1 . . Locate Traps 1 | . . . . . . . . 1 . . . . . . EX-Prototype ID Bank 1 | . . . . . 1 . . . . . . . . . Fabricator Hacks 2 | . . . . . . . . 1 . . . . 1 . Load Schematic 1 | . . . . . . . . . . . . . 1 . Build 1 | . . . . . . . . 1 . . . . . . Repair Station Hacks 13 | . . . . . . . 2 . 7 1 . 1 2 . Scan Component 8 | . . . . . . . 1 . 4 1 . 1 1 . Repair 5 | . . . . . . . 1 . 3 . . . 1 . Recycling Unit Hacks . | . . . . . . . . . . . . . . . Scanalyzer 29 | . . . 4 . . . 4 5 16 . . . . . Insert Component 13 | . . . 2 . . . 2 2 7 . . . . . Analyze 16 | . . . 2 . . . 2 3 9 . . . . . Garrison Access Hacks . | . . . . . . . . . . . . . . . Unauthorized Hacks 32 | . 2 . 9 . . . 7 2 4 3 . 1 . 4 Terminals 26 | . . . 9 . . . 6 2 2 3 . 1 . 3 Track 10 | . . . 3 . . . 2 1 2 . . 1 . 1 Assimilate 2 | . . . 1 . . . . . . 1 . . . . Botnet 11 | . . . 4 . . . 4 1 . 1 . . . 1 Operators 3 | . . . 1 . . . . . . 1 . . . 1 Fabricators 2 | . . . . . . . . . 1 . . . . 1 Overload 1 | . . . . . . . . . . . . . . 1 Download 1 | . . . . . . . . . 1 . . . . . Repair Stations . | . . . . . . . . . . . . . . . Recycling Units 2 | . 2 . . . . . . . . . . . . . Reject 1 | . 1 . . . . . . . . . . . . . Mask 1 | . 1 . . . . . . . . . . . . . Scanalyzers 2 | . . . . . . . 1 . 1 . . . . . Extract 2 | . . . . . . . 1 . 1 . . . . . Garrison Access . | . . . . . . . . . . . . . . . Data Cores Recovered 4 | . . . . . . . 1 1 1 1 . . . . Used 3 | . . . . . . . 1 1 1 . . . . . Hacking Detections 54 | . 1 . 6 . . . 9 8 9 4 1 9 3 4 Full Trace Events 3 | . . . . . . . . 1 1 . . 1 . . Feedback Events . | . . . . . . . . . . . . . . . Feedback Blocked . | . . . . . . . . . . . . . . . Robot Schematics Acquired 1 | . . . . . . . . . 1 . . . . . Robots Built . | . . . . . . . . . . . . . . . Matter . | . . . . . . . . . . . . . . . Time . | . . . . . . . . . . . . . . . Total Robot Build Rating . | . . . . . . . . . . . . . . . Part Schematics Acquired 16 | . . . 2 . . . 4 1 9 . . . . . Parts Built 1 | . . . . . . . . 1 . . . . . . Matter 234 | . . . . . . . . 234 . . . . . . Time 39 | . . . . . . . . 39 . . . . . . Total Part Build Rating 7 | . . . . . . . . 7 . . . . . . Parts Repaired 5 | . . . . . . . 1 . 3 . . . 1 . Time 139 | . . . . . . . 51 . 70 . . . 18 . Parts Recycled . | . . . . . . . . . . . . . . . Recycled Matter . | . . . . . . . . . . . . . . . Retrieved Matter . | . . . . . . . . . . . . . . . Retrieved Components . | . . . . . . . . . . . . . . . Parts Scanalyzed 13 | . . . 2 . . . 2 2 7 . . . . . Part Schematics Acquired 12 | . . . 2 . . . 2 1 7 . . . . . Parts Damaged . | . . . . . . . . . . . . . . . Bothacking | -11 -10 -10 -9 -9 -9 -8 -8 -7 -6 -5 -4 -4 -3 -2 ------------ Run | Scr Mat Min Mat Min Exi Min Mat Fac Fac Fac Fac Ext Res Res Used RIF Installer . | . . . . . . . . . . . . . . . Robots Hacked . | . . . . . . . . . . . . . . . Non-combat . | . . . . . . . . . . . . . . . Combat . | . . . . . . . . . . . . . . . Robot Hacks Applied . | . . . . . . . . . . . . . . . Relay Couplers Released 3 | . . . . . . . . . 3 . . . . . Programmers 3 | . . . . . . . . . 3 . . . . . Robots Rewired 20 | . . . . . . . . . . . . 20 . . Allies Hacked . | . . . . . . . . . . . . . . . Hacks Repelled . | . . . . . . . . . . . . . . . Allies | -11 -10 -10 -9 -9 -9 -8 -8 -7 -6 -5 -4 -4 -3 -2 -------- Run | Scr Mat Min Mat Min Exi Min Mat Fac Fac Fac Fac Ext Res Res Total Allies 29 | . . 3 . 1 . . . . . 1 . 24 . . Largest Group 12 | . . 3 3 1 1 . . . . 1 . 12 11 . Highest-Rated Group 624 | . . 40 40 31 31 . . . . 26 . 624 566 . Highest-Rated Ally 156 | . . 16 16 31 31 . . . . 26 . 156 156 . Total Orders . | . . . . . . . . . . . . . . . Ally Attacks 224 | . . . 24 . . . . . . . . 158 42 . Total Damage 6445 | . . . 235 . . . . . . . . 4977 1233 . Kills 42 | . . . 4 . . . . . . . . 29 9 . Allies Corrupted 1 | . . . . . . . . . . . . . 1 . Allies Melted . | . . . . . . . . . . . . . . . Intel | -11 -10 -10 -9 -9 -9 -8 -8 -7 -6 -5 -4 -4 -3 -2 ------- Run | Scr Mat Min Mat Min Exi Min Mat Fac Fac Fac Fac Ext Res Res Robot Analysis Total 1 | . . . . . . . . . . 1 . . . . Derelict Logs Recovered 3 | . . 2 . 1 . . . . . . . . . . Drone Launches . | . . . . . . . . . . . . . . . Drone Recoveries . | . . . . . . . . . . . . . . . Exploration | -11 -10 -10 -9 -9 -9 -8 -8 -7 -6 -5 -4 -4 -3 -2 ------------- Run | Scr Mat Min Mat Min Exi Min Mat Fac Fac Fac Fac Ext Res Res Turns Passed 17140 | 56 255 692 1057 561 306 363 2349 2829 1686 1196 927 1271 972 2620 Spaces Moved 10440 | 43 267 435 600 253 238 217 1371 1810 1276 846 596 636 611 1241 Core 14 | 12 . . . 1 . . . . . . . . . 1 Treads 1972 | . . 360 600 108 . . . . . . . . 1 903 Legs 8081 | . . . . 144 238 217 1371 1810 1276 846 596 636 610 337 Wheels 373 | 31 267 75 . . . . . . . . . . . . Hover . | . . . . . . . . . . . . . . . Flight . | . . . . . . . . . . . . . . . Fastest Speed 50 | 50 80 90 160 150 105 105 105 105 105 108 108 108 114 113 Average Speed 118 | 92 80 148 160 155 126 105 105 105 105 108 126 110 123 140 Slowest Speed 550 | 150 90 180 160 400 150 105 105 107 107 108 142 114 205 550 Overloaded Moves . | . . . . . . . . . . . . . . . Propulsion Burnouts . | . . . . . . . . . . . . . . . Robots Hopped . | . . . . . . . . . . . . . . . Cave-ins Triggered . | . . . . . . . . . . . . . . . Exploration Rate (%) 43 | 4 33 94 40 92 61 51 73 37 30 14 12 78 11 24 Regions Visited 14 Branch Regions 5 Pre-discovered Areas 1 | . . . . 1 . . . . . . . . . . Known Exits Taken 2 | . . . 1 . . 1 . . . . . . . . Unknown Exits Taken 12 | 1 1 1 . 1 1 . 1 1 1 1 1 1 1 . Scrap Searched 3 | . . 1 . 1 . 1 . . . . . . . . Spaces Dug 14 | . . . . . . . 12 2 . . . . . . Terrain Destroyed 183 | . . . . . . . 81 17 14 17 18 19 11 6 Melee . | . . . . . . . . . . . . . . . Projectile 183 | . . . . . . . 81 17 14 17 18 19 11 6 AOE . | . . . . . . . . . . . . . . . Actions | -11 -10 -10 -9 -9 -9 -8 -8 -7 -6 -5 -4 -4 -3 -2 --------- Run | Scr Mat Min Mat Min Exi Min Mat Fac Fac Fac Fac Ext Res Res Total 14448 | 57 283 463 652 319 244 330 2287 2716 1624 1084 695 1099 768 1827 Wait 2527 | . 2 . 9 8 . 103 813 752 217 135 32 94 62 300 Move 10427 | 42 266 434 600 252 237 216 1370 1809 1275 845 595 635 610 1241 Hop . | . . . . . . . . . . . . . . . Pick Up 96 | 9 . 4 7 1 2 . 14 9 15 9 8 7 3 8 Fast Attach 113 | 3 2 1 4 . 2 . 3 12 8 8 7 14 20 29 Attach 60 | 3 . 4 1 5 . . 1 7 4 8 3 4 4 16 Detach 21 | . . . . . . . . 6 3 2 1 1 2 6 Swap 72 | . 1 . 1 2 1 . 2 7 7 4 3 16 9 19 Drop 179 | . 1 2 7 . 2 . 16 19 17 14 10 29 23 39 Fire 687 | . 11 18 23 51 . 11 68 90 75 57 33 50 35 165 Melee . | . . . . . . . . . . . . . . . Ram . | . . . . . . . . . . . . . . . Kick 5 | . . . . . . . . 5 . . . . . . Crush 4 | . . . . . . . . . . . . . . 4 Escape Stasis 3 | . . . . . . . . . 3 . . . . . Rewire 249 | . . . . . . . . . . . . 249 . . Trap 5 | . . . . . . . . . . 2 3 . . . Miscellaneous . | . . . . . . . . . . . . . . . Route ------- -11/Scrapyard -10/Materials -10/Mines (discovered 2 exits: *Mat x2) -9/Materials (discovered 3 exits: Mat x2 / *Min) -9/Mines (discovered 3 exits: *Mat x2 / *Exi) -9/Exiles -8/Mines -8/Materials (discovered 2 exits: *Fac x2) -7/Factory (discovered 3 exits: *Fac x2 / [*Low]) -6/Factory (discovered 3 exits: *Fac x2 / [*Low]) -5/Factory -4/Factory (discovered 2 exits: [*Upp] / *Ext) -4/Extension (discovered 2 exits: *Res / [*Cet]) -3/Research -2/Research History --------- Turn | Location | Event 17 | -11/Scrapyard | Discovered new exit (range 14) 57 | -11/Scrapyard | Entered Materials 262 | -10/Materials | Discovered new exit (range 5) 312 | -10/Materials | Entered Mines 319 | -10/Mines | Build established: Mutant 324 | -10/Mines | Learned location of 2 exits from Materials 398 | -10/Mines | Core integrity fell below 50% 421 | -10/Mines | Lost 3 parts (1n2w) 542 | -10/Mines | Discovered new exit (range 8) 651 | -10/Mines | Discovered new exit (range 10) 675 | -10/Mines | Learned Materials security intel 927 | -10/Mines | Assisted by bots powering up and referring to "LRC-V3" 1004 | -10/Mines | Entered Materials 1004 | -9/Materials | Accompanied by 3 allies 1004 | -9/Materials | Evolved 2 slots: Propulsion x2 1005 | -9/Materials | Identified exit to Materials 1283 | -9/Materials | Identified exit to Mines 2061 | -9/Materials | Entered Mines 2144 | -9/Mines | Discovered exit to Materials (range 6) 2287 | -9/Mines | Assembled infested the area 2351 | -9/Mines | Core integrity fell below 50% 2365 | -9/Mines | Lost 7 parts (1p4n2w) 2374 | -9/Mines | Destroyed 8 combat bots 2427 | -9/Mines | Learned location of Storage (-7) 2550 | -9/Mines | Received a Mining Laser from a helpful Derelict 2557 | -9/Mines | Discovered exit to Materials (range 14) 2614 | -9/Mines | Deemed a non-threat by the Exiles lab entrance 2616 | -9/Mines | Discovered new exit (range 5) 2622 | -9/Mines | Entered Exiles 2622 | -9/Exiles | Accompanied by 1 ally 2658 | -9/Exiles | Met 8R-AWN 2685 | -9/Exiles | Met EX-HEX 2724 | -9/Exiles | Met EX-BIN 2742 | -9/Exiles | Aligned with FarCom system 2744 | -9/Exiles | Given EX-Vault access code 2781 | -9/Exiles | Opened EX-Vault 2789 | -9/Exiles | Found Potential Leg 2792 | -9/Exiles | Found Potential Leg 2795 | -9/Exiles | Found XL Autogun Array 2799 | -9/Exiles | Found PSU Rigger 2822 | -9/Exiles | Warned to stay clear of 0b10 Research branches 2853 | -9/Exiles | Met EX-DEC 2917 | -9/Exiles | Discovered new exit (range 12) 2928 | -9/Exiles | Stole three prototypes: Potential Leg, PSU Rigger, XL Autogun Array 2928 | -9/Exiles | Entered Mines 3277 | -8/Mines | Discovered exit to Materials (range 15) 3291 | -8/Mines | Entered Materials 3291 | -8/Materials | Evolved 2 slots: Weapon x2 3382 | -8/Materials | Garrison activated, responded to threat 3599 | -8/Materials | Build established: Skirmisher 4096 | -8/Materials | Repaired Hvy. Ion Engine 4670 | -8/Materials | Garrison activated, responded to threat 4710 | -8/Materials | Discovered new exit (range 11) 5501 | -8/Materials | Discovered new exit (range 4) 5640 | -8/Materials | Entered Factory 5640 | -7/Factory | Evolved 2 slots: Utility x2 5642 | -7/Factory | FarCom data flow suspended 5891 | -7/Factory | Discovered new exit (range 6) 5936 | -7/Factory | Build established: Gunner 6162 | -7/Factory | Fabricated Adv. Cryofiber Web (x1) 6309 | -7/Factory | Discovered new exit (range 16) 6694 | -7/Factory | Garrison activated, responded to threat 8397 | -7/Factory | Build established: Tank 8426 | -7/Factory | Discovered new exit (range 9) 8469 | -7/Factory | Entered another Factory area 8469 | -6/Factory | Evolved 2 slots: Power x1, Utility x1 8579 | -6/Factory | Discovered new exit (range 7) 8664 | -6/Factory | Discovered new exit (range 15) 8709 | -6/Factory | Build established: Gunner 9624 | -6/Factory | Repaired Hvy. Deuterium Engine 9752 | -6/Factory | Repaired Imp. Shield Generator 9766 | -6/Factory | Repaired Hcp. Storage Unit 10059 | -6/Factory | Discovered new exit (range 11) 10155 | -6/Factory | Entered another Factory area 10155 | -5/Factory | Evolved 2 slots: Propulsion x1, Utility x1 10717 | -5/Factory | Build established: Tank 11055 | -5/Factory | First assault squad dispatched 11257 | -5/Factory | Discovered new exit (range 11) 11351 | -5/Factory | Entered another Factory area 11351 | -4/Factory | Evolved 2 slots: Utility x2 11393 | -4/Factory | Discovered new exit (range 10) 12267 | -4/Factory | Discovered new exit (range 11) 12278 | -4/Factory | Entered Extension 12346 | -4/Extension | Rescued a captive Derelict 12347 | -4/Extension | Rescued a captive Derelict 12759 | -4/Extension | Rescued A7 12767 | -4/Extension | Spotted B-86 Titan 12785 | -4/Extension | Spotted B-86 Titan 12801 | -4/Extension | Allies destroyed B-86 Titan 12812 | -4/Extension | Allies destroyed B-86 Titan 13050 | -4/Extension | Build established: Scavenger-Gunner 13370 | -4/Extension | Rescued a captive Derelict 13499 | -4/Extension | Discovered new exit (range 10) 13500 | -4/Extension | Discovered new exit (range 6) 13504 | -4/Extension | Disrupted transfer network 13549 | -4/Extension | Entered Research 13549 | -3/Research | Accompanied by 11 allies 13549 | -3/Research | Evolved 2 slots: Power x1, Utility x1 13836 | -3/Research | First assault squad dispatched 13862 | -3/Research | P-80 Master assimilated allied NK-4KI(h) 13989 | -3/Research | Lost 3 parts (1p1u1w) 14043 | -3/Research | Found Antimissile System 14418 | -3/Research | Repaired Recoil Nullifier 14473 | -3/Research | Discovered new exit (range 7) 14521 | -3/Research | Entered another Research area 14521 | -2/Research | Evolved 2 slots: Propulsion x1, Utility x1 15813 | -2/Research | First assault squad dispatched 16361 | -2/Research | System corruption reached 10% 16686 | -2/Research | Spotted B-90 Cyclops 16732 | -2/Research | Destroyed B-90 Cyclops 17030 | -2/Research | Spotted B-90 Cyclops 17130 | -2/Research | Core integrity fell below 50% 17137 | -2/Research | Core integrity fell below 20% 17141 | -2/Research | Destroyed by G-73 Enforcer with Phase Gun Last Messages --------------- 17124_ M-36 Artificer unfolds itself. 17125_ E-15 Imp destroyed. 17126_ Adv. Armor Integrity Analyzer destroyed. 17126_ Lgt. Quantum Reactor destroyed. 17127_ Triggered Segregator Trap. 17127_ Arcs of energy rise from the floor. 17127_ Adv. Core Analyzer blown off. 17127_ Adv. Coolant Injector blown off. 17127_ Adv. Target Analyzer blown off. 17127_ Adv. Signal Interpreter blown off. 17131_ U-05 Engineer lays Concrete. 17134_ System corrupted: IFF burst signal emitted. 17134_ B-90 Cyclops misfires. 17135_ U-05 Engineer destroyed. 17135_ B-90 Cyclops misfires. 17136_ U-05 Engineer lays Concrete. 17137_ B-90 Cyclops activates siege mode. 17137_ U-05 Engineer lays Concrete. 17141_ U-05 Engineer builds a Wall. [Achievement: 20k Club] Map ----- +----------------------------------------------------+ | | | | | | | | | | | | | | | | | | | | | | | | | | | | | | | | | | | ?????????????????????#######?????????????? | | ?????????????????????# ########?????? | | ?????????????????????# !!! # !#?????? | | ?????????????????????# !!* # #?????? | | ?????????????????????# !!! # #?????? | | ?????????????????????# !%= #! ! ! #?????? | | ?????????????????????# =u # #?????? | | ??????????????????????###/### #?????? | | ??????????????????????# @ #"+#"#???????? | | ??????????????????????# glg ####????? | | ??????????????????????# #????? | | ????##+#??????????????# l #????? | | ?? ??????????????# =%! #????? | | ?? ??????????????#" ##+###### | | ??? ??????????????#" g !! # # | | ??? #?????????????#Tg g!! # # | | ???# #?????????????#" m ; # | | ???# #?????????????#" gBB # # | | ???# ###+########### % BB # """ # | | ???# % + """ # | | ???# # """ # | | ???# # # | | ???+ """" = # # | | ???# "F " ######### ## # # | | ???# # #?# ## + # | | ???# # ! #?##??# ############# | | ???# # #?????# #???????????? | | ???# # #?????# #???????????? | | ???# # #######/#######?????? | | ???+ """ # ## ! %!== #?????? | | ???# """ # ! ## ! [= ! #?????? | | ???# """ # ?# *%[ [ #?????? | | ???# ###+#### """=! " #?????? | +----------------------------------------------------+ Best States ------------- Heat Dissipation 93 Coolant Potential 100 Energy Generation 67 Energy Capacity 805 Matter Stores 300 Matter Capacity 550 Sight Range 16 Robot Scan Range 16 Terrain Scan Density 10 Jamming Range 16 Base Temperature (-) 200 Armor Coverage 825 Resistance: TH 25 Resistance: EX 50 Core Shielding 30 Propulsion Shielding 66 Point Defense Rating 240 Weapon Cycling 20 Phase Shifting 15 Evasion (%) 55 Targeting Accuracy 5 Target Analysis 8 Core Analysis 10 Armor Integrity Analysis 66 Recoil Reduction 12 Defensive Hacking 12 Item Schematics ----------------- Hvy. Ion Engine | -9/Materials | Scanalyzed Imp. Assault Rifle | -9/Materials | Scanalyzed Minigun | -8/Materials | Scanalyzed Imp. Propulsion Shielding | -8/Materials | Scanalyzed Med. Storage Unit | -8/Materials | Extracted Lgt. EM Pulse Cannon | -8/Materials | Extracted Coolant Injector | -7/Factory | Scanalyzed Arm. Leg | -6/Factory | Scanalyzed Cld. Particle Cannon | -6/Factory | Scanalyzed Hrd. Medium Armor Plating | -6/Factory | Scanalyzed Imp. Heavy Armor Plating | -6/Factory | Scanalyzed Angular Momentum Engine | -6/Factory | Scanalyzed Imp. Shield Generator | -6/Factory | Scanalyzed Imp. Deuterium Engine | -6/Factory | Scanalyzed Armor Integrity Analyzer | -6/Factory | Extracted Energy Well | -6/Factory | Extracted Robot Schematics ------------------ A-15 Conveyor | -6/Factory | Downloaded Fabricated ------------ Adv. Cryofiber Web | x1 | -7/Factory | Preloaded Alien Tech Used ----------------- None Achievements -------------- 20k Club Can't Touch This Dangerous Findings Prison Break Ride The Lightning Rockin' Loadout Challenges ------------ None Game ------ Seed RiotComponentDiverter Manual? 0 Play Time 03:18:26 Cumulative 39.9 hours Start 2020.07.07 @ 15:35:51 End 2020.07.07 @ 19:30:09 Sessions 1 Manual Loads 0 Difficulty Rogue Special Mode None Game No. 47 Rogue 47 Adventurer 0 Explorer 0 Win Type - Total 0 Types 0/0/0/0/0/0/0 Lore% 30 Gallery% 40 Achievement% 35 Wizard Run 0 Options --------- ASCII 0 Keyboard 0 Movement Numpad Keybinds 0 Fullscreen 2 Font 16/Terminus Map View 76x50 Tactical HUD 1 Map Filters NONE Filters NONE Steam 1 RUN: 03de464d-6610-4728-8c61-2585c4871af3